[Event "Elitserien 2019/2020, round 1-3"]
[Site "Uppsala University, Gamla torget, Uppsala, Sweden"]
[Date "2019.10.19"]
[Round "2.19"]
[White "Suarez Garcia, Carlos"]
[Black "Gdanski, Jacek"]
[Result "0-1"]
[TimeControl "90 minutes for 40 moves + 30 minutes for the rest of the game + 30 seconds per move from move one."]
[WhiteTitle "IM"]
[BlackTitle "GM"]
[WhiteFideId "22230858"]
[BlackFideId "1100106"]
[WhiteElo "2437"]
[BlackElo "2476"]

1. Nf3 {[%clk 01:27:43]} {[%emt 00:00:35]} g6 {[%clk 01:27:56]} {[%emt
00:03:05]} 2. d4 {[%clk 01:27:44]} {[%emt 00:00:29]} Bg7 {[%clk 01:28:00]}
{[%emt 00:00:26]} 3. c4 {[%clk 01:28:01]} {[%emt 00:00:12]} c5 {[%clk
01:28:22]} {[%emt 00:00:09]} 4. Nc3 {[%clk 01:27:33]} {[%emt 00:00:57]} cxd4
{[%clk 01:28:44]} {[%emt 00:00:09]} 5. Nxd4 {[%clk 01:27:59]} {[%emt 00:00:04]}
Nc6 {[%clk 01:29:10]} {[%emt 00:00:04]} 6. Nc2 {[%clk 01:27:25]} {[%emt
00:01:04]} Bxc3+ {[%clk 01:28:11]} {[%emt 00:01:28]} 7. bxc3 {[%clk 01:27:49]}
{[%emt 00:00:06]} Qa5 {[%clk 01:28:22]} {[%emt 00:00:19]} 8. e4 {[%clk
01:20:04]} {[%emt 00:08:16]} Nf6 {[%clk 01:28:32]} {[%emt 00:00:21]} 9. f3
{[%clk 01:20:18]} {[%emt 00:00:16]} d6 {[%clk 01:25:28]} {[%emt 00:03:33]} 10.
Rb1 {[%clk 01:12:29]} {[%emt 00:08:20]} O-O {[%clk 01:21:41]} {[%emt 00:04:16]}
11. Be2 {[%clk 01:09:54]} {[%emt 00:03:05]} Be6 {[%clk 01:16:07]} {[%emt
00:06:04]} 12. O-O {[%clk 01:05:59]} {[%emt 00:04:25]} Rfc8 {[%clk 00:58:29]}
{[%emt 00:18:08]} 13. Bf4 {[%clk 00:59:50]} {[%emt 00:06:39]} Qa4 {[%clk
00:36:17]} {[%emt 00:22:41]} 14. Nd4 {[%clk 00:34:44]} {[%emt 00:25:36]} Qxd1
{[%clk 00:34:52]} {[%emt 00:01:55]} 15. Rfxd1 {[%clk 00:35:10]} {[%emt
00:00:04]} b6 {[%clk 00:35:11]} {[%emt 00:00:11]} 16. Nxe6 {[%clk 00:34:52]}
{[%emt 00:00:48]} fxe6 {[%clk 00:35:39]} {[%emt 00:00:02]} 17. c5 {[%clk
00:33:56]} {[%emt 00:01:26]} bxc5 {[%clk 00:26:04]} {[%emt 00:10:05]} 18. Rb7
{[%clk 00:25:47]} {[%emt 00:08:38]} Rab8 {[%clk 00:24:34]} {[%emt 00:02:01]} 19.
Rdb1 {[%clk 00:25:51]} {[%emt 00:00:26]} Rxb7 {[%clk 00:23:54]} {[%emt
00:01:10]} 20. Rxb7 {[%clk 00:26:19]} {[%emt 00:00:02]} Rb8 {[%clk 00:24:16]}
{[%emt 00:00:08]} 21. Rc7 {[%clk 00:24:53]} {[%emt 00:01:56]} Rb6 {[%clk
00:22:39]} {[%emt 00:02:06]} 22. Bc4 {[%clk 00:18:12]} {[%emt 00:07:11]} Kf7
{[%clk 00:20:59]} {[%emt 00:02:10]} 23. Bb3 {[%clk 00:17:53]} {[%emt 00:00:50]}
Na5 {[%clk 00:17:57]} {[%emt 00:03:32]} 24. Rxa7 {[%clk 00:17:43]} {[%emt
00:00:39]} Nxb3 {[%clk 00:18:19]} {[%emt 00:00:08]} 25. axb3 {[%clk 00:18:02]}
{[%emt 00:00:11]} e5 {[%clk 00:18:45]} {[%emt 00:00:04]} 26. Bd2 {[%clk
00:16:39]} {[%emt 00:01:53]} Rxb3 {[%clk 00:18:57]} {[%emt 00:00:18]} 27. Kf1
{[%clk 00:15:47]} {[%emt 00:01:21]} Rb2 {[%clk 00:17:35]} {[%emt 00:01:51]} 28.
Ke1 {[%clk 00:15:58]} {[%emt 00:00:20]} g5 {[%clk 00:17:27]} {[%emt 00:00:39]}
29. Kd1 {[%clk 00:10:24]} {[%emt 00:06:04]} Rb1+ {[%clk 00:16:13]} {[%emt
00:01:44]} 30. Bc1 {[%clk 00:10:43]} {[%emt 00:00:10]} g4 {[%clk 00:16:31]}
{[%emt 00:00:13]} 31. Ra8 {[%clk 00:07:51]} {[%emt 00:03:22]} gxf3 {[%clk
00:11:19]} {[%emt 00:05:41]} 32. gxf3 {[%clk 00:08:19]} {[%emt 00:00:03]} Nd7
{[%clk 00:11:44]} {[%emt 00:00:05]} 33. Rd8 {[%clk 00:08:05]} {[%emt 00:00:44]}
Nf8 {[%clk 00:10:02]} {[%emt 00:02:11]} 34. Kc2 {[%clk 00:08:32]} {[%emt
00:00:04]} Ra1 {[%clk 00:10:11]} {[%emt 00:00:20]} 35. Kb2 {[%clk 00:08:40]}
{[%emt 00:00:23]} Ra7 {[%clk 00:10:29]} {[%emt 00:00:12]} 36. h4 {[%clk
00:08:12]} {[%emt 00:00:59]} Rd7 {[%clk 00:02:08]} {[%emt 00:08:50]} 37. Ra8
{[%clk 00:08:13]} {[%emt 00:00:30]} Ne6 {[%clk 00:02:20]} {[%emt 00:00:18]} 38.
Rh8 {[%clk 00:06:58]} {[%emt 00:01:45]} Kg7 {[%clk 00:02:45]} {[%emt 00:00:05]}
39. Re8 {[%clk 00:06:56]} {[%emt 00:00:32]} Kg6 {[%clk 00:03:00]} {[%emt
00:00:13]} 40. Rg8+ {[%clk 00:05:13]} {[%emt 00:02:14]} Kh5 {[%clk 00:02:11]}
{[%emt 00:01:19]} 41. Bg5 {[%clk 00:00:52]} {[%emt 00:04:51]} Nxg5 {[%clk
00:24:37]} {[%emt 00:08:05]} 42. hxg5 {[%clk 00:29:30]} {[%emt 00:01:51]} e6
{[%clk 00:24:59]} {[%emt 00:00:08]} 43. Kc2 {[%clk 00:26:10]} {[%emt 00:03:50]}
Rf7 {[%clk 00:22:40]} {[%emt 00:02:49]} 44. Rd8 {[%clk 00:23:23]} {[%emt
00:03:17]} Kxg5 {[%clk 00:20:09]} {[%emt 00:03:01]} 45. Rxd6 {[%clk 00:23:43]}
{[%emt 00:00:10]} Rxf3 {[%clk 00:18:47]} {[%emt 00:01:52]} 46. Rxe6 {[%clk
00:24:05]} {[%emt 00:00:06]} Kf4 {[%clk 00:19:15]} {[%emt 00:00:04]} 47. Rh6
{[%clk 00:23:39]} {[%emt 00:00:56]} c4 {[%clk 00:17:28]} {[%emt 00:02:16]} 48.
Rxh7 {[%clk 00:21:36]} {[%emt 00:02:34]} Rf2+ {[%clk 00:17:32]} {[%emt
00:00:26]} 49. Kd1 {[%clk 00:19:31]} {[%emt 00:02:35]} Kxe4 {[%clk 00:17:51]}
{[%emt 00:00:11]} 50. Rh5 {[%clk 00:16:32]} {[%emt 00:03:28]} Rg2 {[%clk
00:10:18]} {[%emt 00:08:04]} 51. Rh4+ {[%clk 00:15:56]} {[%emt 00:01:06]} Ke3
{[%clk 00:08:37]} {[%emt 00:02:10]} 52. Rh3+ {[%clk 00:16:05]} {[%emt
00:00:22]} Kf4 {[%clk 00:06:56]} {[%emt 00:02:11]} 53. Rh8 {[%clk 00:11:07]}
{[%emt 00:05:29]} e4 {[%clk 00:06:26]} {[%emt 00:01:00]} 54. Rf8+ {[%clk
00:07:01]} {[%emt 00:04:36]} Ke3 {[%clk 00:06:22]} {[%emt 00:00:33]} 55. Rd8
{[%clk 00:07:24]} {[%emt 00:00:07]} Rg1+ {[%clk 00:05:10]} {[%emt 00:01:42]} 56.
Kc2 {[%clk 00:07:52]} {[%emt 00:00:01]} Ke2 {[%clk 00:04:26]} {[%emt 00:01:14]}
57. Rd4 {[%clk 00:06:21]} {[%emt 00:02:01]} e3 {[%clk 00:04:26]} {[%emt
00:00:30]} 58. Rxc4 {[%clk 00:06:40]} {[%emt 00:00:11]} Rg2 {[%clk 00:02:55]}
{[%emt 00:02:02]} 59. Rf4 {[%clk 00:04:37]} {[%emt 00:02:33]} Rf2 {[%clk
00:02:16]} {[%emt 00:01:09]} 60. Rh4 {[%clk 00:04:40]} {[%emt 00:00:27]} Kf3+
{[%clk 00:01:39]} {[%emt 00:01:07]} 61. Kb3 {[%clk 00:04:27]} {[%emt 00:00:42]}
e2 {[%clk 00:01:51]} {[%emt 00:00:18]} 62. Rh3 {[%clk 00:04:53]} {[%emt
00:00:04]} Kf4 {[%clk 00:01:48]} {[%emt 00:00:33]} 63. Rh4+ {[%clk 00:05:20]}
{[%emt 00:00:04]} Ke3 {[%clk 00:02:01]} {[%emt 00:00:17]} 64. Rh8 {[%clk
00:05:15]} {[%emt 00:00:34]} Rf4 {[%clk 00:01:56]} {[%emt 00:00:35]} 65. Rh3
{[%clk 00:05:33]} {[%emt 00:00:13]} Kd2 {[%clk 00:01:23]} {[%emt 00:01:03]} 66.
Rh2 {[%clk 00:05:59]} {[%emt 00:00:04]} Kd1 {[%clk 00:01:50]} {[%emt 00:00:04]}
0-1

[Event "Elitserien 2019/2020, round 1-3"]
[Site "Uppsala University, Gamla torget, Uppsala, Sweden"]
[Date "2019.10.19"]
[Round "2.20"]
[White "Ornstein, Axel"]
[Black "Wedberg, Tom"]
[Result "1/2-1/2"]
[TimeControl "90 minutes for 40 moves + 30 minutes for the rest of the game + 30 seconds per move from move one."]
[WhiteTitle "IM"]
[BlackTitle "GM"]
[WhiteFideId "1700111"]
[BlackFideId "1700073"]
[WhiteElo "2297"]
[BlackElo "2414"]

1. d4 {[%clk 01:30:30]} {[%emt 00:17:16]} Nf6 {[%clk 01:27:33]} {[%emt
00:03:31]} 2. Nf3 {[%clk 01:30:18]} {[%emt 00:00:43]} e6 {[%clk 01:27:41]}
{[%emt 00:00:22]} 3. c4 {[%clk 01:30:30]} {[%emt 00:00:18]} c5 {[%clk
01:27:58]} {[%emt 00:00:12]} 4. e3 {[%clk 01:30:55]} {[%emt 00:00:04]} d5
{[%clk 01:28:13]} {[%emt 00:00:16]} 5. Nc3 {[%clk 01:30:12]} {[%emt 00:01:14]}
Nc6 {[%clk 01:27:18]} {[%emt 00:01:24]} 6. a3 {[%clk 01:30:29]} {[%emt
00:00:13]} a6 {[%clk 01:23:51]} {[%emt 00:03:57]} 7. dxc5 {[%clk 01:30:03]}
{[%emt 00:00:56]} Bxc5 {[%clk 01:24:06]} {[%emt 00:00:15]} 8. b4 {[%clk
01:30:30]} {[%emt 00:00:04]} Ba7 {[%clk 01:24:06]} {[%emt 00:00:30]} 9. Bb2
{[%clk 01:30:54]} {[%emt 00:00:05]} O-O {[%clk 01:23:54]} {[%emt 00:00:42]} 10.
Qc2 {[%clk 01:31:12]} {[%emt 00:00:12]} Qe7 {[%clk 01:16:48]} {[%emt 00:07:36]}
11. Rd1 {[%clk 01:24:03]} {[%emt 00:07:39]} Rd8 {[%clk 01:14:42]} {[%emt
00:02:36]} 12. Be2 {[%clk 01:22:27]} {[%emt 00:02:05]} dxc4 {[%clk 01:13:50]}
{[%emt 00:01:23]} 13. Rxd8+ {[%clk 01:22:52]} {[%emt 00:00:05]} Nxd8 {[%clk
01:10:51]} {[%emt 00:03:29]} 14. Bxc4 {[%clk 01:21:55]} {[%emt 00:01:26]} b5
{[%clk 01:02:19]} {[%emt 00:09:02]} 15. Bd3 {[%clk 01:18:50]} {[%emt 00:03:36]}
Bb7 {[%clk 01:01:32]} {[%emt 00:01:17]} 1/2-1/2

[Event "Elitserien 2019/2020, round 1-3"]
[Site "Uppsala University, Gamla torget, Uppsala, Sweden"]
[Date "2019.10.19"]
[Round "2.21"]
[White "Bellon Lopez, Juan Manuel"]
[Black "Vernersson, Per"]
[Result "1-0"]
[TimeControl "90 minutes for 40 moves + 30 minutes for the rest of the game + 30 seconds per move from move one."]
[WhiteTitle "GM"]
[WhiteFideId "2200031"]
[BlackFideId "1700863"]
[WhiteElo "2334"]
[BlackElo "2275"]

1. e4 {[%clk 01:04:13]} {[%emt 00:18:24]} c6 {[%clk 01:30:29]} {[%emt
00:00:31]} 2. Nc3 {[%clk 01:04:32]} {[%emt 00:00:12]} d5 {[%clk 01:30:37]}
{[%emt 00:00:21]} 3. Nf3 {[%clk 01:04:48]} {[%emt 00:00:15]} Bg4 {[%clk
01:29:21]} {[%emt 00:01:45]} 4. h3 {[%clk 01:05:14]} {[%emt 00:00:05]} Bxf3
{[%clk 01:29:15]} {[%emt 00:00:36]} 5. Qxf3 {[%clk 01:05:37]} {[%emt 00:00:07]}
e6 {[%clk 01:28:46]} {[%emt 00:00:59]} 6. g3 {[%clk 01:04:18]} {[%emt
00:01:50]} Nf6 {[%clk 01:27:44]} {[%emt 00:01:31]} 7. Bg2 {[%clk 01:04:26]}
{[%emt 00:00:21]} Nbd7 {[%clk 01:25:25]} {[%emt 00:02:49]} 8. O-O {[%clk
01:02:58]} {[%emt 00:01:59]} dxe4 {[%clk 01:23:16]} {[%emt 00:02:39]} 9. Nxe4
{[%clk 01:03:19]} {[%emt 00:00:08]} Nxe4 {[%clk 01:22:13]} {[%emt 00:01:33]} 10.
Qxe4 {[%clk 01:03:14]} {[%emt 00:00:36]} Be7 {[%clk 01:21:24]} {[%emt
00:01:18]} 11. d4 {[%clk 01:01:04]} {[%emt 00:02:38]} O-O {[%clk 01:20:53]}
{[%emt 00:01:02]} 12. c3 {[%clk 00:59:07]} {[%emt 00:02:28]} Nf6 {[%clk
01:14:06]} {[%emt 00:07:16]} 13. Qe2 {[%clk 00:59:19]} {[%emt 00:00:18]} Nd5
{[%clk 01:12:10]} {[%emt 00:02:26]} 14. Rd1 {[%clk 00:55:56]} {[%emt 00:03:54]}
Re8 {[%clk 01:11:00]} {[%emt 00:01:39]} 15. c4 {[%clk 00:55:58]} {[%emt
00:00:29]} Nf6 {[%clk 01:05:50]} {[%emt 00:05:40]} 16. b4 {[%clk 00:52:43]}
{[%emt 00:03:45]} a6 {[%clk 00:57:41]} {[%emt 00:08:39]} 17. Rb1 {[%clk
00:52:59]} {[%emt 00:00:14]} Qc7 {[%clk 00:54:35]} {[%emt 00:03:36]} 18. a4
{[%clk 00:49:48]} {[%emt 00:03:42]} Rad8 {[%clk 00:50:12]} {[%emt 00:04:53]} 19.
Bf4 {[%clk 00:49:22]} {[%emt 00:00:55]} Bd6 {[%clk 00:48:57]} {[%emt 00:01:46]}
20. Bg5 {[%clk 00:49:41]} {[%emt 00:00:10]} Be7 {[%clk 00:48:55]} {[%emt
00:00:33]} 21. Qf3 {[%clk 00:38:19]} {[%emt 00:11:52]} e5 {[%clk 00:45:30]}
{[%emt 00:03:56]} 22. Be3 {[%clk 00:33:02]} {[%emt 00:05:47]} exd4 {[%clk
00:42:50]} {[%emt 00:03:10]} 23. Rxd4 {[%clk 00:30:57]} {[%emt 00:02:35]} Rxd4
{[%clk 00:36:09]} {[%emt 00:07:11]} 24. Bxd4 {[%clk 00:31:18]} {[%emt
00:00:08]} Rd8 {[%clk 00:36:26]} {[%emt 00:00:12]} 25. Qe3 {[%clk 00:31:03]}
{[%emt 00:00:45]} Qd7 {[%clk 00:36:02]} {[%emt 00:00:55]} 26. Bb6 {[%clk
00:25:21]} {[%emt 00:06:12]} Re8 {[%clk 00:36:16]} {[%emt 00:00:16]} 27. b5
{[%clk 00:19:22]} {[%emt 00:06:29]} axb5 {[%clk 00:34:20]} {[%emt 00:02:26]} 28.
axb5 {[%clk 00:18:10]} {[%emt 00:01:42]} Bd8 {[%clk 00:25:23]} {[%emt
00:09:27]} 29. bxc6 {[%clk 00:14:31]} {[%emt 00:04:09]} bxc6 {[%clk 00:25:30]}
{[%emt 00:00:23]} 30. Qd4 {[%clk 00:11:30]} {[%emt 00:03:30]} Bxb6 {[%clk
00:24:29]} {[%emt 00:01:32]} 31. Qxb6 {[%clk 00:10:51]} {[%emt 00:01:09]} Rc8
{[%clk 00:24:22]} {[%emt 00:00:36]} 32. Qb7 {[%clk 00:09:53]} {[%emt 00:01:28]}
Kf8 {[%clk 00:21:05]} {[%emt 00:03:48]} 33. Qb4+ {[%clk 00:08:05]} {[%emt
00:02:18]} Qe7 {[%clk 00:20:14]} {[%emt 00:01:22]} 34. Qb7 {[%clk 00:08:18]}
{[%emt 00:00:17]} Qd7 {[%clk 00:20:25]} {[%emt 00:00:19]} 35. Qb4+ {[%clk
00:08:44]} {[%emt 00:00:05]} Qe7 {[%clk 00:20:50]} {[%emt 00:00:05]} 36. Qa4
{[%clk 00:08:09]} {[%emt 00:01:04]} c5 {[%clk 00:19:04]} {[%emt 00:02:16]} 37.
Bf3 {[%clk 00:07:04]} {[%emt 00:01:35]} Rd8 {[%clk 00:17:33]} {[%emt 00:02:01]}
38. Qc6 {[%clk 00:07:09]} {[%emt 00:00:25]} Qd6 {[%clk 00:15:43]} {[%emt
00:02:21]} 39. Qxd6+ {[%clk 00:06:41]} {[%emt 00:00:59]} Rxd6 {[%clk 00:16:08]}
{[%emt 00:00:04]} 40. Rb5 {[%clk 00:06:57]} {[%emt 00:00:14]} Nd7 {[%clk
00:15:21]} {[%emt 00:01:16]} 41. Bg4 {[%clk 00:07:12]} {[%emt 00:00:16]} Ke7
{[%clk 00:13:46]} {[%emt 00:02:05]} 42. Bxd7 {[%clk 00:26:58]} {[%emt
00:10:44]} Kxd7 {[%clk 00:42:47]} {[%emt 00:01:29]} 43. Rxc5 {[%clk 00:24:31]}
{[%emt 00:02:57]} Rd1+ {[%clk 00:40:21]} {[%emt 00:02:56]} 44. Kg2 {[%clk
00:24:58]} {[%emt 00:00:04]} Rc1 {[%clk 00:40:44]} {[%emt 00:00:06]} 45. Kf3
{[%clk 00:24:57]} {[%emt 00:00:31]} Kd6 {[%clk 00:39:27]} {[%emt 00:01:47]} 46.
Rd5+ {[%clk 00:24:38]} {[%emt 00:00:49]} Kc6 {[%clk 00:35:01]} {[%emt
00:04:55]} 47. Rd4 {[%clk 00:24:34]} {[%emt 00:00:34]} Ra1 {[%clk 00:33:51]}
{[%emt 00:01:40]} 48. Ke4 {[%clk 00:19:50]} {[%emt 00:05:15]} Ra7 {[%clk
00:32:01]} {[%emt 00:02:20]} 49. Rd5 {[%clk 00:20:05]} {[%emt 00:00:15]} Re7+
{[%clk 00:28:43]} {[%emt 00:03:48]} 50. Kd4 {[%clk 00:18:27]} {[%emt 00:02:08]}
Re2 {[%clk 00:28:27]} {[%emt 00:00:45]} 51. Rc5+ {[%clk 00:17:29]} {[%emt
00:01:28]} Kd6 {[%clk 00:28:00]} {[%emt 00:00:57]} 52. Rf5 {[%clk 00:17:48]}
{[%emt 00:00:10]} f6 {[%clk 00:28:06]} {[%emt 00:00:24]} 53. g4 {[%clk
00:17:25]} {[%emt 00:00:54]} Rd2+ {[%clk 00:27:08]} {[%emt 00:01:28]} 54. Ke3
{[%clk 00:16:15]} {[%emt 00:01:40]} Ra2 {[%clk 00:25:52]} {[%emt 00:01:47]} 55.
Rd5+ {[%clk 00:15:26]} {[%emt 00:01:19]} Kc6 {[%clk 00:25:14]} {[%emt
00:01:07]} 56. h4 {[%clk 00:15:34]} {[%emt 00:00:23]} Rc2 {[%clk 00:24:58]}
{[%emt 00:00:46]} 57. Rd4 {[%clk 00:15:06]} {[%emt 00:00:57]} Rc3+ {[%clk
00:22:49]} {[%emt 00:02:41]} 58. Ke4 {[%clk 00:12:56]} {[%emt 00:02:39]} Rc2
{[%clk 00:22:06]} {[%emt 00:01:13]} 59. f3 {[%clk 00:12:53]} {[%emt 00:00:33]}
Rh2 {[%clk 00:18:35]} {[%emt 00:04:02]} 60. h5 {[%clk 00:12:40]} {[%emt
00:00:43]} g6 {[%clk 00:17:57]} {[%emt 00:01:08]} 61. hxg6 {[%clk 00:12:47]}
{[%emt 00:00:37]} hxg6 {[%clk 00:18:18]} {[%emt 00:00:09]} 62. Rd8 {[%clk
00:12:43]} {[%emt 00:00:33]} Re2+ {[%clk 00:17:08]} {[%emt 00:01:41]} 63. Kf4
{[%clk 00:12:01]} {[%emt 00:01:11]} Re5 {[%clk 00:17:15]} {[%emt 00:00:23]} 64.
Kg3 {[%clk 00:10:40]} {[%emt 00:01:53]} g5 {[%clk 00:16:23]} {[%emt 00:01:23]}
65. Rf8 {[%clk 00:10:49]} {[%emt 00:00:19]} Re6 {[%clk 00:16:20]} {[%emt
00:00:34]} 66. f4 {[%clk 00:10:59]} {[%emt 00:00:22]} Kd7 {[%clk 00:13:35]}
{[%emt 00:03:14]} 67. fxg5 {[%clk 00:07:50]} {[%emt 00:03:39]} fxg5 {[%clk
00:13:58]} {[%emt 00:00:07]} 68. c5 {[%clk 00:07:31]} {[%emt 00:00:49]} Re3+
{[%clk 00:08:54]} {[%emt 00:05:34]} 69. Rf3 {[%clk 00:07:49]} {[%emt 00:00:13]}
Re7 {[%clk 00:07:58]} {[%emt 00:01:25]} 70. Rf5 {[%clk 00:08:14]} {[%emt
00:00:05]} Rg7 {[%clk 00:08:20]} {[%emt 00:00:08]} 71. Kf3 {[%clk 00:08:36]}
{[%emt 00:00:09]} Kc6 {[%clk 00:08:05]} {[%emt 00:00:45]} 72. Ke4 {[%clk
00:08:53]} {[%emt 00:00:13]} Rg8 {[%clk 00:08:24]} {[%emt 00:00:11]} 73. Re5
{[%clk 00:09:11]} {[%emt 00:00:12]} Kd5+ {[%emt 00:00:19]} 1-0

[Event "Elitserien 2019/2020, round 1-3"]
[Site "Uppsala University, Gamla torget, Uppsala, Sweden"]
[Date "2019.10.19"]
[Round "2.22"]
[White "Thornert, Hakan"]
[Black "Cramling, Dan"]
[Result "0-1"]
[TimeControl "90 minutes for 40 moves + 30 minutes for the rest of the game + 30 seconds per move from move one."]
[BlackTitle "IM"]
[WhiteFideId "1703749"]
[BlackFideId "1700162"]
[WhiteElo "2183"]
[BlackElo "2322"]

1. e4 {[%clk 01:29:32]} {[%emt 00:01:28]} g6 {[%clk 01:16:40]} {[%emt
00:14:20]} 2. d4 {[%clk 01:28:31]} {[%emt 00:01:31]} Bg7 {[%clk 01:17:00]}
{[%emt 00:00:10]} 3. Nc3 {[%clk 01:28:44]} {[%emt 00:00:16]} d6 {[%clk
01:17:16]} {[%emt 00:00:14]} 4. Be3 {[%clk 01:28:21]} {[%emt 00:00:52]} a6
{[%clk 01:17:21]} {[%emt 00:00:26]} 5. a4 {[%clk 01:27:13]} {[%emt 00:01:38]}
b6 {[%clk 01:12:56]} {[%emt 00:04:55]} 6. f4 {[%clk 01:27:19]} {[%emt
00:00:23]} c5 {[%clk 01:12:49]} {[%emt 00:00:38]} 7. Nf3 {[%clk 01:26:30]}
{[%emt 00:01:18]} Nc6 {[%clk 01:12:12]} {[%emt 00:01:07]} 8. Be2 {[%clk
01:19:40]} {[%emt 00:07:19]} Bg4 {[%clk 00:51:03]} {[%emt 00:21:40]} 9. d5
{[%clk 01:18:33]} {[%emt 00:01:38]} Bxf3 {[%clk 00:50:22]} {[%emt 00:01:11]} 10.
Bxf3 {[%clk 01:18:31]} {[%emt 00:00:32]} Nd4 {[%clk 00:50:28]} {[%emt
00:00:24]} 11. O-O {[%clk 01:18:17]} {[%emt 00:00:44]} b5 {[%clk 00:45:45]}
{[%emt 00:05:13]} 12. Qd2 {[%clk 01:13:15]} {[%emt 00:05:31]} b4 {[%clk
00:39:21]} {[%emt 00:06:54]} 13. Nd1 {[%clk 01:11:55]} {[%emt 00:01:49]} Nxf3+
{[%clk 00:38:52]} {[%emt 00:01:00]} 14. Rxf3 {[%clk 01:11:38]} {[%emt
00:00:47]} Nf6 {[%clk 00:39:10]} {[%emt 00:00:12]} 15. Nf2 {[%clk 01:10:43]}
{[%emt 00:01:25]} Nd7 {[%clk 00:37:48]} {[%emt 00:01:52]} 16. Rb1 {[%clk
01:09:50]} {[%emt 00:01:23]} O-O {[%clk 00:33:51]} {[%emt 00:04:28]} 17. b3
{[%clk 01:08:40]} {[%emt 00:01:39]} f5 {[%clk 00:29:57]} {[%emt 00:04:24]} 18.
Rd1 {[%clk 01:06:48]} {[%emt 00:02:22]} Qc7 {[%clk 00:29:16]} {[%emt 00:01:11]}
19. exf5 {[%clk 00:56:14]} {[%emt 00:11:03]} Rxf5 {[%clk 00:27:28]} {[%emt
00:02:18]} 20. g4 {[%clk 00:55:46]} {[%emt 00:00:57]} Bc3 {[%clk 00:25:33]}
{[%emt 00:02:26]} 21. Qe2 {[%clk 00:53:40]} {[%emt 00:02:36]} Rf7 {[%clk
00:23:08]} {[%emt 00:02:55]} 22. Ne4 {[%clk 00:53:39]} {[%emt 00:00:31]} Bf6
{[%clk 00:23:16]} {[%emt 00:00:23]} 23. h4 {[%emt 00:07:19]} Qb7 {[%clk
00:21:40]} {[%emt 00:00:38]} 24. h5 {[%clk 00:38:16]} {[%emt 00:10:31]} gxh5
{[%clk 00:17:49]} {[%emt 00:04:21]} 25. g5 {[%clk 00:38:16]} {[%emt 00:00:30]}
Bd4 {[%clk 00:17:43]} {[%emt 00:00:36]} 26. Bxd4 {[%clk 00:22:37]} {[%emt
00:16:10]} cxd4 {[%clk 00:18:04]} {[%emt 00:00:09]} 27. Qd3 {[%clk 00:18:13]}
{[%emt 00:04:53]} Qxd5 {[%clk 00:15:37]} {[%emt 00:02:58]} 28. Qxd4 {[%clk
00:17:57]} {[%emt 00:00:45]} Qxd4+ {[%clk 00:11:05]} {[%emt 00:05:02]} 29. Rxd4
{[%clk 00:18:21]} {[%emt 00:00:06]} a5 {[%clk 00:11:27]} {[%emt 00:00:09]} 30.
Rf2 {[%clk 00:15:44]} {[%emt 00:03:06]} Raf8 {[%clk 00:08:25]} {[%emt
00:03:32]} 31. Kg2 {[%clk 00:11:12]} {[%emt 00:05:01]} Kg7 {[%clk 00:07:25]}
{[%emt 00:01:33]} 32. Kg3 {[%clk 00:09:38]} {[%emt 00:02:03]} Rf5 {[%clk
00:06:04]} {[%emt 00:01:51]} 33. Nd2 {[%clk 00:07:17]} {[%emt 00:02:50]} Nc5
{[%clk 00:02:19]} {[%emt 00:04:16]} 34. Re2 {[%clk 00:05:20]} {[%emt 00:02:25]}
R8f7 {[%clk 00:01:25]} {[%emt 00:01:27]} 35. Nc4 {[%clk 00:00:47]} {[%emt
00:05:03]} Nd7 {[%clk 00:01:26]} {[%emt 00:00:29]} 36. Ne3 {[%clk 00:00:56]}
{[%emt 00:00:20]} Rc5 {[%clk 00:01:52]} {[%emt 00:00:03]} 37. Nd5 {[%clk
00:01:02]} {[%emt 00:00:25]} e5 {[%clk 00:01:45]} {[%emt 00:00:37]} 38. fxe5
{[%clk 00:01:05]} {[%emt 00:00:27]} dxe5 {[%clk 00:02:01]} {[%emt 00:00:14]} 39.
Rd3 {[%clk 00:01:03]} {[%emt 00:00:31]} e4 {[%clk 00:00:40]} {[%emt 00:01:53]}
40. Rxe4 {[%clk 00:00:58]} {[%emt 00:00:35]} Rxc2 {[%clk 00:01:05]} {[%emt
00:00:05]} 41. Re8 {[%clk 00:24:27]} {[%emt 00:06:56]} Rc1 {[%clk 00:21:11]}
{[%emt 00:10:28]} 42. Nf4 {[%clk 00:17:03]} {[%emt 00:07:54]} h4+ {[%clk
00:19:52]} {[%emt 00:01:49]} 43. Kg4 {[%clk 00:17:02]} {[%emt 00:00:30]} Rg1+
{[%clk 00:16:19]} {[%emt 00:04:02]} 44. Kh5 {[%clk 00:17:06]} {[%emt 00:00:26]}
Nf8 {[%clk 00:15:32]} {[%emt 00:01:18]} 45. Nh3 {[%clk 00:09:47]} {[%emt
00:07:48]} Rg3 {[%clk 00:12:24]} {[%emt 00:03:38]} 46. Rxg3 {[%clk 00:06:18]}
{[%emt 00:04:00]} hxg3 {[%clk 00:12:45]} {[%emt 00:00:08]} 47. Kg4 {[%clk
00:06:37]} {[%emt 00:00:11]} Rc7 {[%clk 00:12:17]} {[%emt 00:00:58]} 48. Re5
{[%clk 00:04:37]} {[%emt 00:02:30]} Rc3 {[%clk 00:10:08]} {[%emt 00:02:40]} 49.
Rxa5 {[%clk 00:04:53]} {[%emt 00:00:13]} g2 {[%clk 00:10:13]} {[%emt 00:00:25]}
50. Ra7+ {[%clk 00:04:56]} {[%emt 00:00:27]} Kg8 {[%clk 00:09:57]} {[%emt
00:00:46]} 51. Ng1 {[%clk 00:04:33]} {[%emt 00:00:54]} Rxb3 {[%clk 00:09:42]}
{[%emt 00:00:46]} 52. Rb7 {[%clk 00:04:08]} {[%emt 00:00:54]} Rb1 {[%clk
00:06:53]} {[%emt 00:03:20]} 53. Nf3 {[%clk 00:03:37]} {[%emt 00:01:00]} Rf1
{[%clk 00:03:34]} {[%emt 00:03:48]} 54. Kg3 {[%clk 00:03:14]} {[%emt 00:00:54]}
Rxf3+ {[%clk 00:03:38]} {[%emt 00:00:27]} 55. Kxg2 {[%clk 00:03:32]} {[%emt
00:00:11]} Rf5 {[%clk 00:03:47]} {[%emt 00:00:21]} 56. Rxb4 {[%clk 00:02:56]}
{[%emt 00:01:07]} Rxg5+ {[%clk 00:04:06]} {[%emt 00:00:11]} 57. Kf3 {[%clk
00:02:36]} {[%emt 00:00:49]} Ra5 {[%clk 00:03:19]} {[%emt 00:01:17]} 58. Rg4+
{[%clk 00:01:39]} {[%emt 00:01:27]} Ng6 {[%clk 00:03:07]} {[%emt 00:00:43]} 59.
Ke3 {[%clk 00:01:08]} {[%emt 00:01:00]} Kf7 {[%clk 00:03:13]} {[%emt 00:00:25]}
60. Kd2 {[%clk 00:01:21]} {[%emt 00:00:17]} h5 {[%clk 00:03:10]} {[%emt
00:00:33]} 0-1